bitfinex/quotes_SOLUSD_20250625
["timestamp","ask_amount","ask_price","bid_price","bid_amount"]
[1750873960964,18.64964886,143.73,143.68,13.63972889]
[1750873961355,25.32946684,143.73,143.68,13.63972889]
[1750873961665,25.32946684,143.73,143.69,6.67981798]
[1750873962463,18.64964886,143.73,143.69,6.67981798]
[1750873962781,32.67981798,143.74,143.7,6.95894224]
[1750873963358,26.0,143.74,143.7,6.95894224]
[1750873963567,32.67981798,143.74,143.7,6.95894224]
[1750873964867,6.67981798,143.73,143.69,13.63921506]
[1750873965234,32.95703858,143.74,143.69,13.63921506]
[1750873965441,6.67981798,143.73,143.69,13.63921506]
[1750873965958,31.14278319,143.74,143.69,13.63921506]
[1750873966146,6.67981798,143.73,143.69,6.95939708]
[1750873966459,14.98603262,143.75,143.69,13.63921506]
[1750873966661,1.6043,143.75,143.69,13.63921506]
[1750873966868,6.67981798,143.74,143.69,13.63921506]
[1750873967839,5.14271604,143.76,143.69,6.95939708]
[1750873968045,18.64964886,143.74,143.69,6.95939708]
[1750873968343,6.67981798,143.73,143.69,13.63921506]
[1750873968542,18.64964886,143.74,143.69,13.63921506]
[1750873968743,6.67981798,143.73,143.69,13.63921506]
[1750873969179,18.64964886,143.74,143.69,13.63921506]
[1750873969386,25.32946684,143.74,143.69,13.63921506]
[1750873969568,18.64964886,143.74,143.69,13.63921506]
[1750873969748,12.09896692,143.76,143.69,6.95939708]
[1750873969949,25.32946684,143.75,143.7,6.67981798]
[1750873970487,18.64964886,143.75,143.7,6.67981798]
[1750873970646,25.32946684,143.75,143.71,6.67981798]
[1750873970854,25.32946684,143.75,143.71,6.95808879]
[1750873971458,6.67981798,143.74,143.71,6.95808879]
[1750873971749,6.67981798,143.73,143.69,6.95942654]
[1750873972065,6.67981798,143.72,143.69,6.95942654]
[1750873972647,6.67981798,143.72,143.68,94.25975986]
[1750873973446,6.67981798,143.71,143.66,6.0917]
[1750873973674,6.67981798,143.68,143.64,6.36]
[1750873974150,5.14271604,143.7,143.64,6.36]
[1750873974357,6.67981798,143.68,143.64,6.36]
[1750873974557,6.67981798,143.67,143.64,6.36]
[1750873974778,6.67981798,143.67,143.65,6.96114381]
[1750873975478,6.67981798,143.68,143.65,6.96114381]
[1750873976687,6.67981798,143.67,143.65,6.96114381]
[1750873976849,6.67981798,143.67,143.64,6.36]
[1750873977055,6.67981798,143.65,143.61,26.0]
[1750873977255,6.67981798,143.64,143.61,32.96308159]
[1750873977886,18.64964886,143.66,143.61,32.96308159]
[1750873978178,6.67981798,143.64,143.61,32.96308159]
[1750873981207,18.64964886,143.66,143.61,39.64289957]
[1750873981208,6.67981798,143.65,143.61,39.64289957]
[1750873981509,6.67981798,143.64,143.61,32.96308159]
[1750873982009,18.64964886,143.66,143.61,32.96308159]
[1750873982220,6.67981798,143.65,143.61,39.64289957]
[1750873982778,18.64964886,143.66,143.61,39.64289957]
[1750873982999,6.67981798,143.65,143.61,39.64289957]
[1750873983402,6.67981798,143.67,143.63,6.67981798]
[1750873983573,5.18143783,143.66,143.63,6.67981798]
[1750873983769,6.67981798,143.67,143.63,6.67981798]
[1750873983973,5.18177515,143.66,143.63,6.67981798]
[1750873984278,6.67981798,143.68,143.64,6.67981798]
[1750873984503,5.1818418,143.67,143.64,6.67981798]
[1750873984708,6.67981798,143.69,143.65,13.6411824]
[1750873984903,5.18125432,143.68,143.65,6.96136442]
[1750873985091,6.67981798,143.69,143.65,6.96136442]
[1750873985303,11.86102632,143.68,143.65,6.96136442]
[1750873985512,6.67981798,143.68,143.65,6.96136442]
[1750873985718,11.86131457,143.69,143.65,6.96136442]
[1750873985881,18.64964886,143.7,143.64,6.67981798]
[1750873986216,11.86096892,143.69,143.64,6.67981798]
[1750873986406,6.67981798,143.69,143.62,111.66871373]
[1750873986589,6.67981798,143.68,143.63,6.67981798]
[1750873986800,6.67981798,143.67,143.62,118.34853171]
[1750873987098,5.18164766,143.68,143.62,31.04853171]
[1750873987305,6.67981798,143.68,143.63,6.67981798]
[1750873987505,6.67981798,143.68,143.62,24.36871373]
[1750873987820,6.67981798,143.67,143.63,13.64175408]
[1750873988378,5.18187233,143.68,143.65,6.67981798]
[1750873988581,6.67981798,143.69,143.63,24.36777053]
[1750873988781,6.67981798,143.69,143.64,6.67981798]
[1750873989612,6.67981798,143.68,143.64,6.67981798]
[1750873989920,6.67981798,143.69,143.65,6.96136442]
[1750873990831,6.67981798,143.68,143.65,6.96136442]
[1750873991028,6.67981798,143.68,143.64,6.96170131]
[1750873991240,6.67981798,143.67,143.64,6.96170131]
[1750873991908,6.67981798,143.68,143.64,6.96170131]
[1750873992117,11.86239133,143.69,143.65,6.67981798]
[1750873992410,18.64964886,143.7,143.65,6.67981798]
[1750873992730,30.5143787,143.7,143.66,6.67981798]
[1750873992940,30.5143787,143.7,143.67,6.67981798]
[1750873992941,5.18491186,143.7,143.67,6.67981798]
[1750873993231,6.67981798,143.72,143.68,6.67981798]
[1750873993527,5.18434642,143.71,143.68,6.67981798]
[1750873993901,11.8641644,143.72,143.69,6.95942654]
[1750873994102,6.67981798,143.71,143.69,6.95942654]
[1750873994329,6.67981798,143.71,143.68,6.95969972]
[1750873994514,6.95805276,143.72,143.65,6.96136442]
[1750873994714,6.67981798,143.69,143.65,13.6411824]
[1750873995027,6.67981798,143.69,143.65,6.96136442]
[1750873995625,11.86808969,143.69,143.65,6.96136442]
[1750873996142,6.67981798,143.68,143.64,61.65981798]
[1750873996438,6.67981798,143.67,143.64,32.96168455]
[1750873996940,11.86921952,143.68,143.64,32.96168455]
[1750873997128,6.67981798,143.68,143.64,32.96168455]
[1750873997441,5.18940154,143.68,143.64,6.96168455]
[1750873997620,18.64964886,143.68,143.64,6.96168455]
[1750873997815,6.67981798,143.67,143.64,6.96168455]
[1750874000052,18.64964886,143.68,143.64,6.96168455]
[1750874000365,25.32946684,143.68,143.64,6.96168455]
[1750874001056,6.67981798,143.69,143.64,13.64150253]
[1750874002274,6.67981798,143.68,143.64,13.64150253]
[1750874002575,5.19103717,143.69,143.64,6.96168455]
[1750874002780,6.67981798,143.68,143.64,6.96168455]
[1750874003145,6.67981798,143.68,143.64,13.64150253]
[1750874003566,6.67981798,143.69,143.64,13.64150253]
[1750874003940,6.67981798,143.68,143.64,13.64150253]
[1750874004173,11.87049954,143.69,143.64,13.64150253]
[1750874004370,6.95904492,143.7,143.64,13.64150253]
[1750874004674,11.87077743,143.69,143.64,13.64150253]
[1750874004873,6.67981798,143.69,143.64,13.64150253]
[1750874006572,51.6082744,143.71,143.64,24.36630721]
[1750874006573,32.67981798,143.71,143.64,24.36630721]
[1750874006783,5.1908868,143.7,143.66,6.67981798]
[1750874006978,32.67981798,143.71,143.66,6.67981798]
[1750874007143,5.19088345,143.7,143.66,6.67981798]
[1750874007344,32.67981798,143.71,143.66,6.67981798]
[1750874007654,5.19092745,143.7,143.66,6.67981798]
[1750874007853,32.67981798,143.71,143.66,6.67981798]
[1750874008166,5.19098634,143.7,143.67,6.96039535]
[1750874008372,6.67981798,143.71,143.67,6.96039535]
[1750874009164,11.87093772,143.7,143.66,6.96072201]
[1750874009367,6.67981798,143.7,143.66,6.96072201]
[1750874010768,6.9585038,143.71,143.66,6.96072201]
[1750874010965,11.87190476,143.7,143.64,17.40462266]
[1750874011170,6.67981798,143.7,143.65,6.67981798]
[1750874011955,6.67981798,143.69,143.64,6.67981798]
[1750874012542,11.87246723,143.7,143.65,6.67981798]
[1750874012743,6.67981798,143.7,143.65,6.67981798]
[1750874012948,6.67981798,143.69,143.65,6.67981798]
[1750874013163,6.67981798,143.69,143.66,6.96087985]
[1750874015063,18.64964886,143.72,143.66,6.96087985]
[1750874015064,6.67981798,143.7,143.66,6.96087985]
[1750874015365,25.32946684,143.72,143.67,6.67981798]
[1750874015668,5.19567867,143.71,143.67,6.67981798]
[1750874015967,13.35707439,143.74,143.7,6.67981798]
[1750874015968,18.64964886,143.74,143.7,6.67981798]
[1750874016141,5.1957927,143.73,143.7,6.67981798]
[1750874016339,25.32946684,143.74,143.7,6.67981798]
[1750874016575,5.19434136,143.73,143.7,6.67981798]
[1750874016776,25.32946684,143.74,143.7,6.67981798]
[1750874016989,5.19539019,143.73,143.69,6.67981798]
[1750874017163,25.32946684,143.74,143.69,6.67981798]
[1750874017483,6.67981798,143.73,143.7,6.95894224]
[1750874017985,18.64964886,143.74,143.7,6.95894224]
[1750874018178,11.87432797,143.73,143.7,6.95894224]
[1750874018356,6.67981798,143.73,143.7,6.95894224]
[1750874019473,6.67981798,143.73,143.69,6.95942654]
[1750874020779,6.67981798,143.73,143.69,13.63924452]
[1750874022585,6.67981798,143.73,143.69,6.95942654]
[1750874023292,25.32946684,143.74,143.69,13.63924452]
[1750874023694,26.0,143.75,143.69,13.63924452]
[1750874023865,5.18940221,143.74,143.7,6.67981798]
[1750874024188,32.67981798,143.75,143.7,6.67981798]
[1750874024508,5.18940179,143.74,143.7,6.67981798]
[1750874024673,32.67981798,143.75,143.7,6.67981798]
[1750874024874,32.67981798,143.75,143.71,6.958458]
[1750874025188,6.67981798,143.75,143.71,13.63827598]
[1750874026495,6.67981798,143.75,143.71,6.958458]
[1750874027894,25.60531283,143.77,143.71,6.958458]
[1750874028096,6.67981798,143.75,143.71,94.258458]
[1750874028601,6.67981798,143.75,143.71,100.93827598]
[1750874030095,6.67981798,143.74,143.71,94.258458]
[1750874030297,5.18710875,143.75,143.71,6.958458]
[1750874030489,6.67981798,143.75,143.71,6.958458]
[1750874030800,25.605421,143.77,143.71,6.958458]
[1750874030801,6.67981798,143.74,143.71,6.958458]
[1750874031015,6.67981798,143.72,143.7,87.3]
[1750874031176,6.67981798,143.71,143.68,6.95970191]
[1750874031380,6.67981798,143.7,143.68,6.95970191]
[1750874031581,6.67981798,143.7,143.67,6.96039535]
[1750874034510,5.18893662,143.71,143.67,24.36138372]
[1750874034682,8.21961798,143.74,143.69,6.67981798]
[1750874034885,6.67981798,143.71,143.67,31.0412017]
[1750874035889,6.67981798,143.7,143.67,24.36138372]
[1750874037683,6.67981798,143.7,143.67,6.96039535]
[1750874038385,18.64964886,143.72,143.67,6.96039535]
[1750874038601,6.67981798,143.68,143.65,6.96136442]
[1750874038809,6.67981798,143.67,143.65,6.96136442]
[1750874039510,6.67981798,143.67,143.64,13.36171179]
[1750874039689,6.67981798,143.68,143.64,13.36171179]
[1750874040210,5.19099223,143.7,143.64,37.44615243]
[1750874040388,6.67981798,143.71,143.67,6.67981798]
[1750874040588,5.1905504,143.7,143.66,6.67981798]
[1750874040807,6.67981798,143.71,143.66,6.67981798]
[1750874041086,5.19055159,143.7,143.66,6.67981798]
[1750874041296,25.32946684,143.72,143.67,6.67981798]
[1750874041504,5.19065588,143.71,143.67,6.67981798]
[1750874041709,25.32946684,143.72,143.67,6.67981798]
[1750874041912,5.19094574,143.71,143.67,6.67981798]
[1750874042111,6.67981798,143.71,143.68,6.95991091]
[1750874042915,6.67981798,143.69,143.66,6.96087985]
[1750874043899,6.67981798,143.68,143.66,6.96087985]
[1750874044099,6.67981798,143.68,143.64,23.80442568]
[1750874044100,6.67981798,143.68,143.65,6.96136442]
[1750874046630,25.32946684,143.72,143.67,6.67981798]
[1750874046792,25.32946684,143.72,143.68,6.67981798]
[1750874046994,18.64964886,143.72,143.68,6.67981798]
[1750874048237,26.0,143.73,143.7,6.95894224]
[1750874048395,18.64964886,143.73,143.7,6.95894224]
[1750874048599,25.32946684,143.73,143.7,6.95894224]
[1750874049107,5.19334238,143.72,143.7,6.95894224]
[1750874049294,25.32946684,143.73,143.7,6.95894224]
[1750874049608,5.19401298,143.72,143.7,6.95894224]
[1750874049811,25.32946684,143.73,143.7,6.95894224]
[1750874050004,5.19402349,143.72,143.7,6.95894224]
[1750874050203,25.32946684,143.73,143.7,6.95894224]
[1750874050400,5.19424579,143.72,143.69,6.95942654]
[1750874050715,25.32946684,143.73,143.69,6.95942654]
[1750874050914,5.194743,143.72,143.69,6.95942654]
[1750874051106,25.32946684,143.73,143.69,6.95942654]
[1750874051308,5.19471252,143.72,143.69,6.95942654]
[1750874051506,25.32946684,143.73,143.69,6.95942654]
[1750874051709,5.19527268,143.72,143.69,6.95942654]
[1750874051923,25.32946684,143.73,143.69,13.63924452]
[1750874052216,5.19527268,143.72,143.69,13.63924452]
[1750874052420,25.32946684,143.73,143.69,6.95942654]
[1750874052615,5.19551365,143.72,143.69,6.95942654]
[1750874052813,25.32946684,143.73,143.69,6.95942654]
[1750874053017,6.67981798,143.71,143.69,6.95942654]
[1750874053216,25.32946684,143.7,143.67,6.96039535]
[1750874054023,6.67981798,143.68,143.64,6.67981798]
[1750874054222,6.67981798,143.68,143.64,6.96184906]
[1750874054395,6.67981798,143.69,143.64,31.0462897]
[1750874054805,6.67981798,143.68,143.64,24.36647172]
[1750874055013,6.67981798,143.68,143.64,31.0462897]
[1750874055325,6.67981798,143.69,143.65,6.67981798]
[1750874056622,25.32946684,143.68,143.64,6.96184906]
[1750874056824,25.32946684,143.68,143.58,159.14177206]
[1750874056825,6.67981798,143.65,143.6,6.9637883]
[1750874057044,6.67981798,143.64,143.6,6.9637883]
[1750874057398,6.67981798,143.65,143.6,13.64360628]
[1750874057706,6.67981798,143.65,143.61,6.67981798]
[1750874057906,6.67981798,143.65,143.62,6.96281854]
[1750874060035,11.87114934,143.65,143.62,6.96281854]
[1750874060212,6.67981798,143.65,143.62,6.96281854]
[1750874060412,6.1133,143.72,143.64,6.67981798]
[1750874060722,5.18782123,143.71,143.68,6.67981798]
[1750874061034,5.18750821,143.71,143.68,6.67981798]
[1750874061208,6.1133,143.72,143.68,6.67981798]
[1750874061419,12.79311798,143.72,143.69,6.95942654]
[1750874061636,38.79311798,143.72,143.69,6.95942654]
[1750874061827,30.51725432,143.71,143.67,6.96039535]
[1750874062007,25.32946684,143.71,143.67,6.96039535]
[1750874062223,6.67981798,143.7,143.67,6.96039535]
[1750874064318,25.32946684,143.71,143.67,13.64021333]
[1750874064637,12.79311798,143.72,143.68,6.67981798]
[1750874064932,6.67981798,143.72,143.68,6.67981798]
[1750874065630,1.516,143.73,143.7,6.95894224]
[1750874065828,5.1872306,143.74,143.72,6.67981798]
[1750874066017,18.64964886,143.76,143.72,6.67981798]
[1750874066220,5.18722329,143.75,143.72,6.67981798]
[1750874066413,5.18722329,143.74,143.7,24.35629784]
[1750874066615,5.18722329,143.76,143.73,6.67981798]
[1750874066813,1.5673,143.77,143.73,6.67981798]
[1750874067003,5.18655933,143.76,143.73,6.67981798]
[1750874067205,6.1889,143.79,143.74,6.67981798]
[1750874067408,5.18599056,143.78,143.74,6.67981798]
[1750874067627,5.18599056,143.77,143.74,6.67981798]
[1750874067838,5.18599056,143.77,143.75,13.63633971]
[1750874068137,5.18599056,143.78,143.75,13.63633971]
[1750874068338,12.86871798,143.79,143.75,13.63633971]
[1750874068552,5.18384464,143.78,143.75,6.95652173]
[1750874069709,5.18384464,143.78,143.75,13.63633971]
[1750874069908,5.18384464,143.78,143.75,6.95652173]
[1750874072438,31.67981798,143.79,143.75,6.95652173]
[1750874072616,6.67981798,143.78,143.74,6.95684243]
[1750874072914,6.67981798,143.78,143.74,13.63666041]
[1750874073331,6.67981798,143.78,143.74,6.95684243]
[1750874073540,6.67981798,143.78,143.74,13.63666041]
[1750874074113,36.85823269,143.79,143.74,13.63666041]
[1750874074922,36.85823269,143.79,143.75,6.67981798]
[1750874076738,36.85823269,143.79,143.75,13.63603328]
[1750874079243,5.17841471,143.8,143.76,6.67981798]
[1750874079539,30.50113138,143.81,143.76,6.67981798]
[1750874079938,6.67981798,143.8,143.75,13.63603328]
[1750874081724,6.67981798,143.8,143.76,6.67981798]
[1750874082141,30.50113138,143.81,143.76,6.67981798]
[1750874083238,6.67981798,143.83,143.78,6.67981798]
[1750874083439,6.67981798,143.83,143.79,13.63413013]
[1750874084145,6.67981798,143.83,143.79,6.95431215]
[1750874084625,6.67981798,143.82,143.77,6.955554]
[1750874084820,6.67981798,143.82,143.77,13.63537198]
[1750874085836,6.95284933,143.83,143.77,13.63537198]
[1750874086045,6.67981798,143.82,143.77,13.63537198]
[1750874086339,6.67981798,143.8,143.76,6.95603784]
[1750874086544,6.67981798,143.78,143.76,87.3]
[1750874086737,6.67981798,143.77,143.76,87.3]
[1750874086921,6.67981798,143.77,143.75,6.95646925]
[1750874087121,6.67981798,143.78,143.75,6.95646925]
[1750874088028,0.14216157,143.81,143.74,6.9570057]
[1750874088220,6.67981798,143.78,143.74,94.2570057]
[1750874088543,6.67981798,143.78,143.74,6.9570057]
[1750874089337,6.67981798,143.78,143.74,13.63682368]
[1750874089838,6.67981798,143.78,143.74,6.9570057]
[1750874090035,6.67981798,143.78,143.74,13.63682368]
[1750874091247,18.64964886,143.79,143.74,13.63682368]
[1750874091430,6.67981798,143.78,143.74,13.63682368]
[1750874093339,6.67981798,143.77,143.74,6.9570057]
[1750874097142,6.67981798,143.77,143.73,6.95748973]
[1750874100248,6.67981798,143.76,143.73,6.95748973]
[1750874100551,6.67981798,143.74,143.7,87.3]
[1750874100724,6.67981798,143.73,143.7,6.95849401]
[1750874101129,5.34156109,143.73,143.7,6.95849401]
[1750874101829,25.32946684,143.72,143.67,6.96039535]
[1750874102033,6.67981798,143.71,143.67,13.64021333]
[1750874102727,18.64964886,143.72,143.67,13.64021333]
[1750874102933,6.67981798,143.73,143.69,6.67981798]
[1750874103239,6.67981798,143.73,143.68,6.67981798]
[1750874104362,6.67981798,143.72,143.69,6.95942654]
[1750874105652,6.6019579,143.77,143.7,6.67981798]
[1750874105835,11.86369846,143.76,143.71,6.67981798]
[1750874106028,6.67981798,143.76,143.71,6.67981798]
[1750874107553,6.67981798,143.76,143.72,6.95797383]
[1750874108753,25.60490045,143.78,143.72,6.95797383]
[1750874109058,6.67981798,143.76,143.72,13.63779181]
[1750874109864,6.67981798,143.76,143.71,6.67981798]
[1750874110045,25.60474738,143.78,143.71,6.67981798]
[1750874110046,6.67981798,143.75,143.71,6.67981798]
[1750874112264,6.67981798,143.76,143.72,6.95797383]
[1750874117273,25.60472594,143.78,143.72,6.95797383]
[1750874117456,6.67981798,143.77,143.72,13.63779181]
[1750874117841,6.67981798,143.77,143.72,31.0327264]
[1750874118041,25.32946684,143.78,143.73,6.67981798]
[1750874118266,11.87098007,143.77,143.73,6.67981798]
[1750874118560,6.67981798,143.77,143.73,6.67981798]
[1750874119863,6.67981798,143.77,143.74,6.9570057]
[1750874120453,6.67981798,143.78,143.74,94.2570057]
[1750874120766,11.87086146,143.77,143.74,94.2570057]
[1750874120962,6.67981798,143.77,143.74,94.2570057]
[1750874122270,25.32946684,143.78,143.74,94.2570057]
[1750874122968,25.32946684,143.78,143.74,100.93682368]
[1750874124353,25.32946684,143.78,143.74,94.2570057]
[1750874124772,5.19096329,143.77,143.74,6.9570057]
[1750874124967,6.67981798,143.77,143.74,6.9570057]
[1750874125658,18.64964886,143.78,143.74,6.9570057]
[1750874125861,25.32946684,143.78,143.74,6.9570057]
[1750874128062,6.48913241,143.82,143.77,6.67981798]
[1750874128362,5.19054977,143.81,143.78,6.67981798]
[1750874128565,5.19054977,143.8,143.78,6.67981798]
[1750874128864,6.67981798,143.82,143.78,6.67981798]
[1750874129073,5.19035071,143.81,143.78,6.67981798]
[1750874129288,6.67981798,143.82,143.78,6.67981798]
[1750874129459,5.18938767,143.81,143.78,6.67981798]
[1750874129777,6.67981798,143.82,143.78,6.67981798]
[1750874129978,5.19024152,143.81,143.79,6.95458654]
[1750874130148,25.32946684,143.83,143.79,6.95458654]
[1750874130474,5.1911331,143.82,143.79,6.95458654]
[1750874130670,5.1911331,143.81,143.79,6.95458654]
[1750874130974,25.32946684,143.83,143.79,6.95458654]
[1750874131181,5.18971184,143.82,143.79,6.95458654]
[1750874131355,5.18971184,143.81,143.79,6.95458654]
[1750874131551,6.67981798,143.83,143.79,6.95458654]
[1750874131769,5.18934717,143.82,143.79,13.63440452]
[1750874132074,26.0,143.84,143.8,6.67981798]
[1750874132255,5.18888483,143.83,143.8,6.67981798]
[1750874132454,26.0,143.84,143.8,6.67981798]
[1750874132648,26.0,143.84,143.79,111.64105291]
[1750874132649,5.18677771,143.83,143.79,111.64105291]
[1750874132877,6.67981798,143.81,143.78,6.95484009]
[1750874133748,6.67981798,143.82,143.78,13.63465807]
[1750874133959,5.18656918,143.81,143.78,13.63465807]
[1750874134180,6.67981798,143.82,143.78,13.63465807]
[1750874134476,5.18621411,143.81,143.78,6.95484009]
[1750874134776,6.67981798,143.82,143.78,6.95484009]
[1750874134978,5.18568996,143.81,143.78,6.95484009]
[1750874135151,6.67981798,143.82,143.78,6.95484009]
[1750874135354,11.86550913,143.81,143.78,6.95484009]
[1750874135593,25.60237767,143.83,143.78,6.95484009]
[1750874135877,6.67981798,143.81,143.78,6.95484009]
[1750874136372,6.67981798,143.81,143.77,6.955554]
[1750874136674,6.67981798,143.81,143.77,100.93537198]
[1750874136884,6.67981798,143.81,143.77,94.255554]
[1750874140086,6.67981798,143.79,143.77,87.3]
[1750874140389,6.67981798,143.78,143.75,87.3]
[1750874140565,6.67981798,143.77,143.75,87.3]
[1750874141298,6.67981798,143.78,143.75,87.3]
[1750874141468,6.67981798,143.78,143.75,94.25642545]
[1750874141775,5.18340027,143.79,143.75,94.25642545]
[1750874141964,6.67981798,143.81,143.77,6.67981798]
[1750874142165,6.67981798,143.81,143.77,93.97981798]
[1750874142390,6.67981798,143.81,143.77,87.3]
[1750874143993,6.67981798,143.81,143.78,6.95507024]
[1750874144185,11.86193546,143.81,143.78,6.95507024]
[1750874144671,6.67981798,143.81,143.78,6.95507024]
[1750874145189,6.67981798,143.79,143.77,87.3]
[1750874145395,6.67981798,143.79,143.76,94.25578142]
[1750874146375,6.67981798,143.79,143.76,87.3]
[1750874146786,6.95432744,143.8,143.76,94.25599696]
[1750874147093,6.67981798,143.79,143.76,94.25599696]
[1750874147303,6.67981798,143.8,143.76,94.25599696]
[1750874147482,6.9537291,143.81,143.76,100.93581494]
[1750874147682,11.86480621,143.8,143.76,100.93581494]
[1750874147883,6.67981798,143.8,143.76,94.25599696]
[1750874148082,13.63396794,143.8,143.76,94.25599696]
[1750874148284,6.67981798,143.79,143.76,94.25599696]
[1750874148479,6.67981798,143.79,143.76,87.3]
[1750874148687,6.67981798,143.78,143.76,87.3]
[1750874148997,11.86665447,143.79,143.76,87.3]
[1750874149183,6.67981798,143.79,143.76,87.3]
[1750874149890,6.67981798,143.79,143.76,94.25596142]
[1750874150903,5.19106066,143.78,143.76,94.25596142]
[1750874151109,6.67981798,143.79,143.76,94.25596142]
[1750874151313,5.19104645,143.78,143.76,94.25596142]
[1750874151489,6.67981798,143.79,143.76,94.25596142]
[1750874151695,5.19210996,143.78,143.76,94.25596142]
[1750874151884,6.67981798,143.79,143.76,94.25596142]
[1750874152083,5.19206599,143.78,143.76,94.25596142]
[1750874152301,6.67981798,143.79,143.76,94.25596142]
[1750874152499,5.19312588,143.78,143.76,87.3]
[1750874152698,6.67981798,143.78,143.76,87.3]
[1750874152876,6.67981798,143.77,143.76,87.3]
[1750874153077,6.67981798,143.78,143.76,87.3]
[1750874154202,6.67981798,143.78,143.75,94.25642473]
[1750874156098,6.67981798,143.78,143.75,87.3]
[1750874156604,11.87500262,143.77,143.75,87.3]
[1750874156809,6.67981798,143.77,143.75,87.3]
[1750874156997,6.48913241,143.81,143.75,94.25640814]
[1750874157197,6.67981798,143.79,143.75,100.93622612]
[1750874157374,11.87492584,143.78,143.75,87.3]
[1750874157580,6.67981798,143.78,143.75,94.25635298]
[1750874157779,6.67981798,143.77,143.75,87.3]
[1750874158212,6.67981798,143.76,143.75,87.3]
[1750874159990,11.87622663,143.76,143.75,87.3]
[1750874160301,11.87671038,143.76,143.75,87.3]
[1750874160488,37.48239708,143.76,143.72,93.66]
[1750874160688,6.67981798,143.74,143.72,100.61793728]
[1750874160885,6.67981798,143.76,143.72,107.29775526]
[1750874161081,5.19731954,143.75,143.72,107.29775526]
[1750874161282,6.67981798,143.76,143.72,136.15775526]
[1750874161482,5.19786713,143.75,143.72,136.15775526]
[1750874161682,6.67981798,143.76,143.72,136.15775526]
[1750874161903,5.19734101,143.75,143.72,136.15775526]
[1750874162097,6.67981798,143.76,143.72,136.15775526]
[1750874162300,5.1973422,143.75,143.72,136.15775526]
[1750874162498,6.67981798,143.76,143.72,136.15775526]
[1750874162685,5.19737155,143.75,143.72,136.15775526]
[1750874162892,6.67981798,143.76,143.72,136.15775526]
[1750874163192,5.19737155,143.75,143.72,136.15775526]
[1750874163394,6.67981798,143.76,143.72,136.15775526]
[1750874164598,5.19692501,143.75,143.72,136.15775526]
[1750874164896,6.67981798,143.76,143.72,136.15775526]
[1750874165090,5.19693417,143.75,143.72,136.15775526]
[1750874165295,6.67981798,143.76,143.72,136.15775526]
[1750874167011,6.95515152,143.78,143.72,136.15775526]
[1750874167012,6.67981798,143.77,143.72,136.15775526]
[1750874167210,5.19605132,143.76,143.72,136.15775526]
[1750874167418,6.67981798,143.77,143.72,136.15775526]
[1750874167594,5.19586321,143.76,143.72,136.15775526]
[1750874167794,6.67981798,143.77,143.72,136.15775526]
[1750874168126,5.19586321,143.76,143.73,6.67981798]
[1750874168290,5.19538863,143.78,143.75,6.67981798]
[1750874168495,6.67981798,143.8,143.76,6.67981798]
[1750874168689,5.19537707,143.79,143.76,87.3]
[1750874168994,5.19537707,143.78,143.76,87.3]
[1750874169325,5.19549575,143.77,143.76,87.3]
[1750874169625,25.32946684,143.8,143.76,87.3]
[1750874169837,5.19495363,143.79,143.76,94.25563125]
[1750874170123,13.63441026,143.79,143.76,87.3]
[1750874170329,6.67981798,143.77,143.76,87.3]
[1750874170620,6.67981798,143.77,143.75,94.25631915]
[1750874170914,6.67981798,143.77,143.75,87.3]
[1750874172202,6.67981798,143.76,143.75,87.3]
[1750874172516,11.87630334,143.76,143.73,87.3]
[1750874172715,6.67981798,143.74,143.72,87.3]
[1750874173503,6.67981798,143.75,143.72,94.25794324]
[1750874174827,6.67981798,143.76,143.72,100.93776122]
[1750874175119,6.67981798,143.75,143.72,94.25794324]
[1750874179423,25.32946684,143.78,143.73,6.67981798]
[1750874179723,32.63129398,143.8,143.73,6.67981798]
[1750874179724,5.19627512,143.77,143.74,35.53981798]
[1750874179924,6.67981798,143.79,143.74,35.53981798]
[1750874180223,5.19597794,143.78,143.74,35.53981798]
[1750874180399,6.67981798,143.79,143.75,6.95652173]
[1750874180598,5.19627371,143.78,143.75,94.25652173]
[1750874180813,6.67981798,143.79,143.75,94.25652173]
[1750874181018,5.19604569,143.78,143.75,94.25652173]
[1750874181226,6.67981798,143.79,143.75,94.25652173]
[1750874181430,5.19604688,143.78,143.75,94.25652173]
[1750874181635,6.67981798,143.79,143.75,94.25652173]
[1750874182938,18.64964886,143.81,143.76,6.67981798]
[1750874183146,5.19638341,143.8,143.78,6.67981798]
[1750874183434,6.48913241,143.84,143.79,6.67981798]
[1750874183435,13.16895039,143.84,143.79,6.67981798]
[1750874183629,11.87542278,143.83,143.79,87.3]
[1750874183819,5.1956048,143.82,143.79,87.3]
[1750874184002,5.1956048,143.81,143.79,87.3]
[1750874184208,6.67981798,143.83,143.79,87.3]
[1750874184409,5.1955495,143.82,143.79,87.3]
[1750874184629,5.1955495,143.81,143.8,6.95410292]
[1750874184819,6.67981798,143.85,143.8,13.6339209]
[1750874185027,5.19457133,143.84,143.8,100.9339209]
[1750874185233,6.67981798,143.86,143.81,6.67981798]
[1750874185433,5.19397657,143.85,143.81,93.97981798]
[1750874185737,5.19397657,143.84,143.81,93.97981798]